[Event "Titled Tuesday Blitz May 24 Early 2022"]
[White "Sailer, Mike"]
[Black "Lauridsen, Jesper Morch"]
[WhiteFideId "2012901"]
[BlackFideId "1401890"]
[WhiteElo "2109"]
[BlackElo "2239"]
[Result "1/2-1/2"]
[Round "08"]
[TimeControl "180+1"]
[Date "2022.05.25"]
[WhiteClock "0:00:40"]
[BlackClock "0:00:42"]

1. d4 {[%clk 0:02:59]}  Nf6 {[%clk 0:02:58]} 2. Nf3 {[%clk 0:03:00]}  g6 {[%clk 0:02:58]} 3. Bf4 {[%clk 0:03:00]}  d6 {[%clk 0:02:58]} 4. e3 {[%clk 0:03:01]}  Bg7 {[%clk 0:02:56]} 5. h3 {[%clk 0:02:59]}  O-O {[%clk 0:02:56]} 6. Bd3 {[%clk 0:02:59]}  c5 {[%clk 0:02:56]} 7. c3 {[%clk 0:02:59]}  Nc6 {[%clk 0:02:55]} 8. Nbd2 {[%clk 0:02:59]}  cxd4 {[%clk 0:02:53]} 9. exd4 {[%clk 0:02:59]}  e5 {[%clk 0:02:53]} 10. Bg5 {[%clk 0:02:38]}  exd4 {[%clk 0:02:45]} 11. cxd4 {[%clk 0:02:35]}  Re8+ {[%clk 0:02:44]} 12. Be2 {[%clk 0:02:25]}  h6 {[%clk 0:02:34]} 13. Bh4 {[%clk 0:02:22]}  g5 {[%clk 0:02:30]} 14. Bg3 {[%clk 0:02:22]}  Qe7 {[%clk 0:02:29]} 15. Kf1 {[%clk 0:02:17]}  Bf5 {[%clk 0:02:22]} 16. Nc4 {[%clk 0:02:12]}  Rad8 {[%clk 0:02:15]} 17. Bd3 {[%clk 0:02:05]}  Bxd3+ {[%clk 0:02:00]} 18. Qxd3 {[%clk 0:02:05]}  Ne4 {[%clk 0:02:00]} 19. Kg1 {[%clk 0:01:56]}  Nxg3 {[%clk 0:01:59]} 20. fxg3 {[%clk 0:01:56]}  Qe3+ {[%clk 0:01:57]} 21. Qxe3 {[%clk 0:01:57]}  Rxe3 {[%clk 0:01:57]} 22. Kf2 {[%clk 0:01:55]}  Rd3 {[%clk 0:01:16]} 23. Rad1 {[%clk 0:01:54]}  Rxd1 {[%clk 0:01:15]} 24. Rxd1 {[%clk 0:01:53]}  b5 {[%clk 0:01:15]} 25. Ne3 {[%clk 0:01:45]}  Nb4 {[%clk 0:01:13]} 26. a3 {[%clk 0:01:35]}  Nc6 {[%clk 0:01:13]} 27. Nf5 {[%clk 0:01:35]}  Kf8 {[%clk 0:01:01]} 28. Rc1 {[%clk 0:01:28]}  Ne7 {[%clk 0:00:59]} 29. Nxg7 {[%clk 0:01:22]}  Kxg7 {[%clk 0:00:58]} 30. Rc7 {[%clk 0:01:23]}  Nc8 {[%clk 0:00:56]} 31. d5 {[%clk 0:01:12]}  a5 {[%clk 0:00:56]} 32. Nd4 {[%clk 0:01:12]}  Nb6 {[%clk 0:00:55]} 33. Nxb5 {[%clk 0:01:01]}  Nxd5 {[%clk 0:00:54]} 34. Rc6 {[%clk 0:00:59]}  Rb8 {[%clk 0:00:53]} 35. a4 {[%clk 0:00:56]}  Rb6 {[%clk 0:00:53]} 36. Rxd6 {[%clk 0:00:52]}  Rxd6 {[%clk 0:00:49]} 37. Nxd6 {[%clk 0:00:52]}  Kf6 {[%clk 0:00:48]} 38. Nc4 {[%clk 0:00:52]}  Nb4 {[%clk 0:00:45]} 39. Nxa5 {[%clk 0:00:52]}  Nd3+ {[%clk 0:00:45]} 40. Ke3 {[%clk 0:00:53]}  Nxb2 {[%clk 0:00:45]} 41. Nb3 {[%clk 0:00:49]}  Nxa4 {[%clk 0:00:45]} 42. Nd4 {[%clk 0:00:49]}  Kg6 {[%clk 0:00:45]} 43. g4 {[%clk 0:00:50]}  Nc5 {[%clk 0:00:45]} 44. Nf5 {[%clk 0:00:50]}  Ne6 {[%clk 0:00:44]} 45. g3 {[%clk 0:00:48]}  h5 {[%clk 0:00:43]} 46. Ne7+ {[%clk 0:00:48]}  Kf6 {[%clk 0:00:43]} 47. Nd5+ {[%clk 0:00:48]}  Ke5 {[%clk 0:00:43]} 48. Ne7 {[%clk 0:00:41]}  h4 {[%clk 0:00:42]} 49. gxh4 {[%clk 0:00:40]}  gxh4 {[%clk 0:00:42]} 50. Nf5 {[%clk 0:00:40]}  Ng5 {[%clk 0:00:42]} 51. Nxh4 {[%clk 0:00:39]}  Nxh3 {[%clk 0:00:42]} 52. Nf3+ {[%clk 0:00:40]} 1/2-1/2


[Site "https://www.chess.com"]

[Event "Titled Tuesday Blitz May 24 Early 2022"]
[White "Samadov, Read"]
[Black "Fromm, Marius"]
[WhiteFideId "13417444"]
[BlackFideId "12993190"]
[WhiteElo "2084"]
[BlackElo "2542"]
[Result "1-0"]
[Round "08"]
[TimeControl "180+1"]
[Date "2022.05.24"]
[WhiteClock "0:00:05"]
[BlackClock "0:00:04"]

1. d4 {[%clk 0:03:00]}  Nf6 {[%clk 0:02:59]} 2. c4 {[%clk 0:03:01]}  e6 {[%clk 0:02:59]} 3. Nf3 {[%clk 0:03:00]}  d5 {[%clk 0:03:00]} 4. g3 {[%clk 0:03:00]}  dxc4 {[%clk 0:02:53]} 5. Bg2 {[%clk 0:03:00]}  Be7 {[%clk 0:02:39]} 6. O-O {[%clk 0:03:00]}  O-O {[%clk 0:02:40]} 7. Qc2 {[%clk 0:03:00]}  a6 {[%clk 0:02:41]} 8. a4 {[%clk 0:03:00]}  Bd7 {[%clk 0:02:41]} 9. Qxc4 {[%clk 0:03:00]}  Bc6 {[%clk 0:02:41]} 10. Bg5 {[%clk 0:03:01]}  Nbd7 {[%clk 0:02:41]} 11. Nc3 {[%clk 0:03:01]}  h6 {[%clk 0:02:40]} 12. Bxf6 {[%clk 0:03:01]}  Nxf6 {[%clk 0:02:41]} 13. Rfd1 {[%clk 0:02:51]}  Rc8 {[%clk 0:02:36]} 14. a5 {[%clk 0:02:50]}  Qd6 {[%clk 0:02:31]} 15. Ne1 {[%clk 0:02:26]}  Bxg2 {[%clk 0:02:30]} 16. Kxg2 {[%clk 0:02:26]}  Rfd8 {[%clk 0:02:19]} 17. Nc2 {[%clk 0:02:17]}  c5 {[%clk 0:02:12]} 18. dxc5 {[%clk 0:02:13]}  Qc6+ {[%clk 0:02:06]} 19. Kg1 {[%clk 0:02:09]}  Rxd1+ {[%clk 0:02:03]} 20. Rxd1 {[%clk 0:02:08]}  Qxc5 {[%clk 0:02:04]} 21. Qb3 {[%clk 0:01:47]}  Rc7 {[%clk 0:01:57]} 22. Qa4 {[%clk 0:01:41]}  Qc4 {[%clk 0:01:45]} 23. Rd4 {[%clk 0:01:06]}  Qxa4 {[%clk 0:01:41]} 24. Rxa4 {[%clk 0:01:07]}  Kf8 {[%clk 0:01:36]} 25. Ne3 {[%clk 0:00:59]}  Bc5 {[%clk 0:01:32]} 26. Rc4 {[%clk 0:00:55]}  Ke7 {[%clk 0:01:29]} 27. Kf1 {[%clk 0:00:50]}  Kd7 {[%clk 0:01:17]} 28. Nc2 {[%clk 0:00:45]}  Bd6 {[%clk 0:01:12]} 29. Rxc7+ {[%clk 0:00:44]}  Bxc7 {[%clk 0:01:13]} 30. b4 {[%clk 0:00:44]}  Be5 {[%clk 0:01:09]} 31. Na4 {[%clk 0:00:42]}  Kc6 {[%clk 0:01:09]} 32. e3 {[%clk 0:00:40]}  Nd5 {[%clk 0:01:07]} 33. Ke2 {[%clk 0:00:33]}  Bc3 {[%clk 0:01:06]} 34. Nxc3 {[%clk 0:00:31]}  Nxc3+ {[%clk 0:01:07]} 35. Kd3 {[%clk 0:00:31]}  Nd5 {[%clk 0:01:00]} 36. Kc4 {[%clk 0:00:31]}  b5+ {[%clk 0:00:59]} 37. Kd3 {[%clk 0:00:27]}  f5 {[%clk 0:00:54]} 38. f3 {[%clk 0:00:22]}  Kd6 {[%clk 0:00:51]} 39. e4 {[%clk 0:00:22]}  Ne7 {[%clk 0:00:47]} 40. Nd4 {[%clk 0:00:21]}  g6 {[%clk 0:00:44]} 41. Nb3 {[%clk 0:00:17]}  Nc6 {[%clk 0:00:32]} 42. Kc3 {[%clk 0:00:17]}  Ne5 {[%clk 0:00:23]} 43. f4 {[%clk 0:00:15]}  Nd7 {[%clk 0:00:18]} 44. e5+ {[%clk 0:00:14]}  Kd5 {[%clk 0:00:17]} 45. h4 {[%clk 0:00:12]}  g5 {[%clk 0:00:13]} 46. Kd3 {[%clk 0:00:08]}  gxf4 {[%clk 0:00:11]} 47. gxf4 {[%clk 0:00:08]}  h5 {[%clk 0:00:08]} 48. Nd4 {[%clk 0:00:04]}  Nb8 {[%clk 0:00:05]} 49. Ne2 {[%clk 0:00:03]}  Nd7 {[%clk 0:00:03]} 50. Nc3+ {[%clk 0:00:03]}  Kc6 {[%clk 0:00:03]} 51. Kd4 {[%clk 0:00:04]}  Nb8 {[%clk 0:00:02]} 52. Ne2 {[%clk 0:00:04]}  Kc7 {[%clk 0:00:01]} 53. Ng3 {[%clk 0:00:05]}  Nc6+ {[%clk 0:00:01]} 54. Kc5 {[%clk 0:00:05]}  Ne7 {[%clk 0:00:02]} 55. Nxh5 {[%clk 0:00:06]}  Nd5 {[%clk 0:00:03]} 56. Nf6 {[%clk 0:00:03]}  Nxf4 {[%clk 0:00:03]} 57. h5 {[%clk 0:00:04]}  Kd8 {[%clk 0:00:02]} 58. h6 {[%clk 0:00:04]}  Ng6 {[%clk 0:00:03]} 59. h7 {[%clk 0:00:04]}  Ke7 {[%clk 0:00:03]} 60. Kb6 {[%clk 0:00:04]}  Kf7 {[%clk 0:00:03]} 61. Kxa6 {[%clk 0:00:05]}  Kg7 {[%clk 0:00:03]} 62. Kxb5 {[%clk 0:00:06]}  Nxe5 {[%clk 0:00:04]} 63. a6 {[%clk 0:00:05]} 1-0


[Site "https://www.chess.com"]

[Event "Titled Tuesday Blitz May 24 Early 2022"]
[White "Seo, Jung Min"]
[Black "Coto Mederos, Michel"]
[WhiteFideId "1734687"]
[BlackFideId "3508528"]
[WhiteElo "2401"]
[BlackElo "2427"]
[Result "1-0"]
[Round "08"]
[TimeControl "180+1"]
[Date "2022.05.24"]
[WhiteClock "0:01:52"]
[BlackClock "0:00:13"]

1. d4 {[%clk 0:03:00]}  d5 {[%clk 0:02:59]} 2. c4 {[%clk 0:03:01]}  e6 {[%clk 0:02:59]} 3. Nc3 {[%clk 0:03:00]}  Nf6 {[%clk 0:02:58]} 4. cxd5 {[%clk 0:03:00]}  exd5 {[%clk 0:02:58]} 5. Bg5 {[%clk 0:02:59]}  Be7 {[%clk 0:02:58]} 6. e3 {[%clk 0:03:00]}  c6 {[%clk 0:02:56]} 7. Bd3 {[%clk 0:02:59]}  Nbd7 {[%clk 0:02:54]} 8. Qc2 {[%clk 0:02:57]}  O-O {[%clk 0:02:53]} 9. Nge2 {[%clk 0:02:57]}  Re8 {[%clk 0:02:54]} 10. O-O {[%clk 0:02:57]}  Nf8 {[%clk 0:02:53]} 11. Rae1 {[%clk 0:02:54]}  Ng6 {[%clk 0:02:51]} 12. f3 {[%clk 0:02:46]}  Bd6 {[%clk 0:02:43]} 13. Bxf6 {[%clk 0:02:34]}  Qxf6 {[%clk 0:02:38]} 14. e4 {[%clk 0:02:34]}  dxe4 {[%clk 0:02:04]} 15. fxe4 {[%clk 0:02:33]}  Qg5 {[%clk 0:01:58]} 16. e5 {[%clk 0:02:26]}  Bf8 {[%clk 0:01:49]} 17. Ne4 {[%clk 0:02:18]}  Qh6 {[%clk 0:01:27]} 18. N2g3 {[%clk 0:02:11]}  Be6 {[%clk 0:01:17]} 19. Bc4 {[%clk 0:02:09]}  Rad8 {[%clk 0:01:09]} 20. Nf5 {[%clk 0:02:06]}  Bxf5 {[%clk 0:00:40]} 21. Rxf5 {[%clk 0:02:04]}  Rd7 {[%clk 0:00:37]} 22. Ref1 {[%clk 0:02:03]}  Ree7 {[%clk 0:00:35]} 23. Ng5 {[%clk 0:02:00]}  Nh8 {[%clk 0:00:30]} 24. e6 {[%clk 0:01:54]}  Rc7 {[%clk 0:00:14]} 25. exf7+ {[%clk 0:01:53]}  Nxf7 {[%clk 0:00:13]} 26. Nxf7 {[%clk 0:01:52]}  Qe3+ {[%clk 0:00:13]} 27. Kh1 {[%clk 0:01:52]} 1-0


[Site "https://www.chess.com"]

[Event "Titled Tuesday Blitz May 24 Early 2022"]
[White "Shimanov, Aleksandr"]
[Black "Bachmann, Axel"]
[WhiteFideId "4198603"]
[BlackFideId "3700488"]
[WhiteElo "2605"]
[BlackElo "2587"]
[Result "1-0"]
[Round "08"]
[TimeControl "180+1"]
[Date "2022.05.24"]
[WhiteClock "0:00:53"]
[BlackClock "0:00:32"]

1. b3 {[%clk 0:02:58]}  d5 {[%clk 0:02:59]} 2. Bb2 {[%clk 0:02:58]}  Bf5 {[%clk 0:02:55]} 3. d3 {[%clk 0:02:57]}  Nf6 {[%clk 0:02:53]} 4. Nd2 {[%clk 0:02:57]}  e6 {[%clk 0:02:52]} 5. g3 {[%clk 0:02:57]}  Bc5 {[%clk 0:02:47]} 6. e3 {[%clk 0:02:49]}  Qe7 {[%clk 0:02:40]} 7. a3 {[%clk 0:02:49]}  Nbd7 {[%clk 0:02:38]} 8. Ngf3 {[%clk 0:02:39]}  h6 {[%clk 0:02:36]} 9. Bg2 {[%clk 0:02:36]}  c6 {[%clk 0:02:36]} 10. O-O {[%clk 0:02:29]}  e5 {[%clk 0:02:35]} 11. e4 {[%clk 0:02:08]}  dxe4 {[%clk 0:02:36]} 12. dxe4 {[%clk 0:02:08]}  Bg4 {[%clk 0:02:27]} 13. h3 {[%clk 0:02:06]}  Bh5 {[%clk 0:02:27]} 14. Qe1 {[%clk 0:02:03]}  b5 {[%clk 0:02:11]} 15. b4 {[%clk 0:01:57]}  Bb6 {[%clk 0:02:07]} 16. c4 {[%clk 0:01:58]}  Qe6 {[%clk 0:01:39]} 17. c5 {[%clk 0:01:54]}  Bc7 {[%clk 0:01:38]} 18. Nh4 {[%clk 0:01:54]}  O-O {[%clk 0:01:34]} 19. f4 {[%clk 0:01:47]}  exf4 {[%clk 0:01:25]} 20. gxf4 {[%clk 0:01:47]}  Rfe8 {[%clk 0:01:15]} 21. e5 {[%clk 0:01:45]}  Nd5 {[%clk 0:01:15]} 22. Qg3 {[%clk 0:01:30]}  f5 {[%clk 0:00:59]} 23. Nb3 {[%clk 0:01:24]}  Nxf4 {[%clk 0:00:45]} 24. Rxf4 {[%clk 0:01:19]}  Bxe5 {[%clk 0:00:45]} 25. Bxe5 {[%clk 0:01:16]}  Qxe5 {[%clk 0:00:46]} 26. Raf1 {[%clk 0:01:11]}  g5 {[%clk 0:00:42]} 27. Nxf5 {[%clk 0:00:56]}  Kh8 {[%clk 0:00:36]} 28. Rd4 {[%clk 0:00:54]}  Qxg3 {[%clk 0:00:31]} 29. Nxg3 {[%clk 0:00:54]}  Re3 {[%clk 0:00:32]} 30. Nxh5 {[%clk 0:00:53]} 1-0


[Site "https://www.chess.com"]

[Event "Titled Tuesday Blitz May 24 Early 2022"]
[White "Shtyka, Sergey"]
[Black "Skuhala, Barbara"]
[WhiteFideId "4138465"]
[BlackFideId "14605465"]
[WhiteElo "2014"]
[BlackElo "2155"]
[Result "1/2-1/2"]
[Round "08"]
[TimeControl "180+1"]
[Date "2022.05.25"]
[WhiteClock "0:00:04"]
[BlackClock "0:00:45"]

1. e4 {[%clk 0:03:00]}  c5 {[%clk 0:02:56]} 2. Nf3 {[%clk 0:03:00]}  d6 {[%clk 0:02:56]} 3. d4 {[%clk 0:03:00]}  cxd4 {[%clk 0:02:54]} 4. Nxd4 {[%clk 0:03:01]}  Nf6 {[%clk 0:02:53]} 5. Nc3 {[%clk 0:03:02]}  a6 {[%clk 0:02:52]} 6. Bc4 {[%clk 0:03:01]}  e6 {[%clk 0:02:51]} 7. O-O {[%clk 0:03:01]}  Be7 {[%clk 0:02:51]} 8. Be3 {[%clk 0:03:01]}  O-O {[%clk 0:02:51]} 9. f4 {[%clk 0:03:01]}  Qc7 {[%clk 0:02:51]} 10. Bd3 {[%clk 0:03:01]}  Nc6 {[%clk 0:02:50]} 11. Qf3 {[%clk 0:03:01]}  Nxd4 {[%clk 0:02:49]} 12. Bxd4 {[%clk 0:03:00]}  b5 {[%clk 0:02:47]} 13. a3 {[%clk 0:03:00]}  Bb7 {[%clk 0:02:47]} 14. Rae1 {[%clk 0:03:00]}  Rac8 {[%clk 0:02:46]} 15. Qh3 {[%clk 0:02:57]}  e5 {[%clk 0:02:45]} 16. Be3 {[%clk 0:02:55]}  Rfd8 {[%clk 0:02:42]} 17. Kh1 {[%clk 0:02:52]}  Qd7 {[%clk 0:02:31]} 18. Qf3 {[%clk 0:02:32]}  Qg4 {[%clk 0:02:27]} 19. Qxg4 {[%clk 0:02:29]}  Nxg4 {[%clk 0:02:20]} 20. Bb6 {[%clk 0:02:29]}  Re8 {[%clk 0:02:18]} 21. h3 {[%clk 0:02:24]}  Nf6 {[%clk 0:02:16]} 22. f5 {[%clk 0:02:17]}  Bf8 {[%clk 0:02:10]} 23. Kg1 {[%clk 0:02:10]}  d5 {[%clk 0:02:09]} 24. exd5 {[%clk 0:02:09]}  Nxd5 {[%clk 0:02:07]} 25. Nxd5 {[%clk 0:02:09]}  Bxd5 {[%clk 0:02:07]} 26. c3 {[%clk 0:02:08]}  f6 {[%clk 0:02:05]} 27. Be4 {[%clk 0:02:03]}  Bxe4 {[%clk 0:02:05]} 28. Rxe4 {[%clk 0:02:03]}  Bc5+ {[%clk 0:02:05]} 29. Bxc5 {[%clk 0:02:03]}  Rxc5 {[%clk 0:02:06]} 30. Rd1 {[%clk 0:02:02]}  Re7 {[%clk 0:02:07]} 31. Kf2 {[%clk 0:01:56]}  Kf7 {[%clk 0:02:06]} 32. g4 {[%clk 0:01:54]}  g6 {[%clk 0:02:07]} 33. Ke3 {[%clk 0:01:44]}  Rb7 {[%clk 0:02:05]} 34. Rd6 {[%clk 0:01:40]}  a5 {[%clk 0:02:03]} 35. Ra6 {[%clk 0:01:35]}  a4 {[%clk 0:02:02]} 36. Rd6 {[%clk 0:01:34]}  Kg7 {[%clk 0:02:00]} 37. Rb4 {[%clk 0:01:32]}  Kh6 {[%clk 0:01:55]} 38. Rxf6 {[%clk 0:01:26]}  Kg5 {[%clk 0:01:55]} 39. Rf8 {[%clk 0:01:22]}  Rd7 {[%clk 0:01:45]} 40. fxg6 {[%clk 0:01:17]}  hxg6 {[%clk 0:01:42]} 41. Rb8 {[%clk 0:01:00]}  Rdd5 {[%clk 0:01:39]} 42. Ke4 {[%clk 0:00:56]}  Kh4 {[%clk 0:01:34]} 43. Rh8+ {[%clk 0:00:54]}  Kg3 {[%clk 0:01:32]} 44. Rg8 {[%clk 0:00:47]}  Rd6 {[%clk 0:01:31]} 45. Rb8 {[%clk 0:00:43]}  Rdd5 {[%clk 0:01:29]} 46. Rh8 {[%clk 0:00:42]}  Rd1 {[%clk 0:01:21]} 47. Rg8 {[%clk 0:00:30]}  Rd6 {[%clk 0:01:18]} 48. Rh8 {[%clk 0:00:17]}  Rd1 {[%clk 0:01:17]} 49. Rh6 {[%clk 0:00:17]}  Rd6 {[%clk 0:01:13]} 50. g5 {[%clk 0:00:16]}  Re6 {[%clk 0:00:59]} 51. h4 {[%clk 0:00:16]}  Kg4 {[%clk 0:00:59]} 52. h5 {[%clk 0:00:15]}  Kxg5 {[%clk 0:00:54]} 53. Rxg6+ {[%clk 0:00:15]}  Rxg6 {[%clk 0:00:54]} 54. hxg6 {[%clk 0:00:16]}  Kxg6 {[%clk 0:00:55]} 55. c4 {[%clk 0:00:08]}  bxc4 {[%clk 0:00:53]} 56. Rxa4 {[%clk 0:00:08]}  Kf6 {[%clk 0:00:48]} 57. Ra6+ {[%clk 0:00:07]}  Ke7 {[%clk 0:00:48]} 58. Rb6 {[%clk 0:00:04]}  Kd7 {[%clk 0:00:48]} 59. a4 {[%clk 0:00:04]}  Kc7 {[%clk 0:00:49]} 60. Re6 {[%clk 0:00:04]}  c3 {[%clk 0:00:46]} 61. bxc3 {[%clk 0:00:02]}  Rxc3 {[%clk 0:00:46]} 62. Rxe5 {[%clk 0:00:03]}  Kb6 {[%clk 0:00:47]} 63. Kf5 {[%clk 0:00:03]}  Rc5 {[%clk 0:00:44]} 64. Rxc5 {[%clk 0:00:03]}  Kxc5 {[%clk 0:00:45]} 65. Ke4 {[%clk 0:00:03]}  Kb4 {[%clk 0:00:45]} 66. Ke5 {[%clk 0:00:04]}  Kxa4 {[%clk 0:00:45]} 1/2-1/2


[Site "https://www.chess.com"]

[Event "Titled Tuesday Blitz May 24 Early 2022"]
[White "Stanisz, Patryk"]
[Black "Toncheva, Nadya"]
[WhiteFideId "1123106"]
[BlackFideId "2924056"]
[WhiteElo "1833"]
[BlackElo "1888"]
[Result "0-1"]
[Round "08"]
[TimeControl "180+1"]
[Date "2022.05.25"]
[WhiteClock "0:00:27"]
[BlackClock "0:00:39"]

1. e4 {[%clk 0:03:00]}  c5 {[%clk 0:03:00]} 2. Nf3 {[%clk 0:02:59]}  e6 {[%clk 0:03:00]} 3. d3 {[%clk 0:02:56]}  Nc6 {[%clk 0:02:57]} 4. Nc3 {[%clk 0:02:55]}  g6 {[%clk 0:02:57]} 5. Bg5 {[%clk 0:02:52]}  Qb6 {[%clk 0:02:40]} 6. Rb1 {[%clk 0:02:51]}  Bg7 {[%clk 0:02:39]} 7. g3 {[%clk 0:02:30]}  Nge7 {[%clk 0:02:35]} 8. Bg2 {[%clk 0:02:30]}  O-O {[%clk 0:02:30]} 9. O-O {[%clk 0:02:29]}  h6 {[%clk 0:02:22]} 10. Be3 {[%clk 0:02:27]}  Nd4 {[%clk 0:02:20]} 11. Bxd4 {[%clk 0:02:10]}  cxd4 {[%clk 0:02:15]} 12. Ne2 {[%clk 0:02:11]}  Nc6 {[%clk 0:02:07]} 13. Nd2 {[%clk 0:02:06]}  Qc7 {[%clk 0:01:51]} 14. f4 {[%clk 0:02:02]}  f5 {[%clk 0:01:50]} 15. e5 {[%clk 0:01:59]}  d6 {[%clk 0:01:49]} 16. exd6 {[%clk 0:01:48]}  Qxd6 {[%clk 0:01:50]} 17. Nc4 {[%clk 0:01:48]}  Qc7 {[%clk 0:01:49]} 18. Re1 {[%clk 0:01:35]}  b5 {[%clk 0:01:41]} 19. Na5 {[%clk 0:00:52]}  Bd7 {[%clk 0:01:23]} 20. Nxc6 {[%clk 0:00:46]}  Bxc6 {[%clk 0:01:23]} 21. Bxc6 {[%clk 0:00:47]}  Qxc6 {[%clk 0:01:24]} 22. Kf2 {[%clk 0:00:41]}  Rae8 {[%clk 0:01:20]} 23. Ng1 {[%clk 0:00:40]}  e5 {[%clk 0:01:17]} 24. fxe5 {[%clk 0:00:41]}  Bxe5 {[%clk 0:01:14]} 25. Nf3 {[%clk 0:00:37]}  Bg7 {[%clk 0:01:05]} 26. Qd2 {[%clk 0:00:37]}  Re3 {[%clk 0:00:41]} 27. Re2 {[%clk 0:00:30]}  Qxf3+ {[%clk 0:00:40]} 28. Ke1 {[%clk 0:00:27]}  Rfe8 {[%clk 0:00:39]} 0-1


[Site "https://www.chess.com"]

[Event "Titled Tuesday Blitz May 24 Early 2022"]
[White "Steenbekkers, Franck"]
[Black "Kvaloy, Aksel Bu"]
[WhiteFideId "1004220"]
[BlackFideId "1528815"]
[WhiteElo "2030"]
[BlackElo "2053"]
[Result "0-1"]
[Round "08"]
[TimeControl "180+1"]
[Date "2022.05.25"]
[WhiteClock "0:00:25"]
[BlackClock "0:00:08"]

1. e4 {[%clk 0:03:00]}  e5 {[%clk 0:02:58]} 2. Nf3 {[%clk 0:02:59]}  Nc6 {[%clk 0:02:56]} 3. Bb5 {[%clk 0:02:57]}  a6 {[%clk 0:02:55]} 4. Ba4 {[%clk 0:02:57]}  Nf6 {[%clk 0:02:53]} 5. O-O {[%clk 0:02:56]}  Be7 {[%clk 0:02:51]} 6. Re1 {[%clk 0:02:55]}  b5 {[%clk 0:02:51]} 7. Bb3 {[%clk 0:02:55]}  O-O {[%clk 0:02:51]} 8. c3 {[%clk 0:02:55]}  d5 {[%clk 0:02:51]} 9. exd5 {[%clk 0:02:48]}  Nxd5 {[%clk 0:02:52]} 10. Nxe5 {[%clk 0:02:48]}  Nxe5 {[%clk 0:02:51]} 11. Rxe5 {[%clk 0:02:47]}  c6 {[%clk 0:02:52]} 12. d4 {[%clk 0:02:48]}  Bd6 {[%clk 0:02:51]} 13. Re1 {[%clk 0:02:47]}  Qh4 {[%clk 0:02:51]} 14. g3 {[%clk 0:02:48]}  Qh3 {[%clk 0:02:51]} 15. Re4 {[%clk 0:02:49]}  g5 {[%clk 0:02:50]} 16. Qf3 {[%clk 0:02:48]}  Bf5 {[%clk 0:02:43]} 17. Bxd5 {[%clk 0:02:46]}  cxd5 {[%clk 0:02:40]} 18. Re3 {[%clk 0:02:44]}  Be4 {[%clk 0:02:29]} 19. Rxe4 {[%clk 0:02:42]}  dxe4 {[%clk 0:02:30]} 20. Qf6 {[%clk 0:02:41]}  Qe6 {[%clk 0:02:09]} 21. Qxg5+ {[%clk 0:02:38]}  Qg6 {[%clk 0:02:08]} 22. Be3 {[%clk 0:02:37]}  Rae8 {[%clk 0:01:59]} 23. Nd2 {[%clk 0:02:33]}  f5 {[%clk 0:01:57]} 24. Qxg6+ {[%clk 0:02:28]}  hxg6 {[%clk 0:01:56]} 25. h4 {[%clk 0:02:29]}  f4 {[%clk 0:01:54]} 26. gxf4 {[%clk 0:02:25]}  Bxf4 {[%clk 0:01:55]} 27. Re1 {[%clk 0:02:19]}  Rf5 {[%clk 0:01:37]} 28. b3 {[%clk 0:02:13]}  Bxe3 {[%clk 0:01:17]} 29. Rxe3 {[%clk 0:02:10]}  Rf4 {[%clk 0:01:17]} 30. f3 {[%clk 0:02:07]}  Rxh4 {[%clk 0:01:15]} 31. fxe4 {[%clk 0:02:05]}  Rf8 {[%clk 0:01:13]} 32. e5 {[%clk 0:02:02]}  Rg4+ {[%clk 0:01:12]} 33. Kh2 {[%clk 0:01:53]}  Kg7 {[%clk 0:00:34]} 34. d5 {[%clk 0:01:51]}  Rg5 {[%clk 0:00:29]} 35. c4 {[%clk 0:01:08]}  Rf2+ {[%clk 0:00:24]} 36. Kh3 {[%clk 0:01:05]}  Rxd2 {[%clk 0:00:25]} 37. e6 {[%clk 0:01:03]}  Kf8 {[%clk 0:00:21]} 38. a4 {[%clk 0:00:56]}  bxc4 {[%clk 0:00:18]} 39. bxc4 {[%clk 0:00:55]}  Ke7 {[%clk 0:00:13]} 40. Rf3 {[%clk 0:00:52]}  Rf5 {[%clk 0:00:12]} 41. Rb3 {[%clk 0:00:48]}  Re5 {[%clk 0:00:08]} 42. Rb7+ {[%clk 0:00:43]}  Kf6 {[%clk 0:00:08]} 43. Rf7+ {[%clk 0:00:42]}  Kg5 {[%clk 0:00:07]} 44. e7 {[%clk 0:00:42]}  Rd3+ {[%clk 0:00:07]} 45. Kg2 {[%clk 0:00:40]}  Rd4 {[%clk 0:00:07]} 46. c5 {[%clk 0:00:33]}  Rdxd5 {[%clk 0:00:07]} 47. c6 {[%clk 0:00:32]}  Rc5 {[%clk 0:00:08]} 48. c7 {[%clk 0:00:30]}  Rxc7 {[%clk 0:00:08]} 49. e8=Q {[%clk 0:00:30]}  Rc2+ {[%clk 0:00:09]} 50. Kg3 {[%clk 0:00:25]}  Rxe8 {[%clk 0:00:08]} 0-1


[Site "https://www.chess.com"]

[Event "Titled Tuesday Blitz May 24 Early 2022"]
[White "Tomaszewski, Kacper"]
[Black "Shton, Roman"]
[WhiteFideId "1127373"]
[BlackFideId "14137461"]
[WhiteElo "2153"]
[BlackElo "2013"]
[Result "1-0"]
[Round "08"]
[TimeControl "180+1"]
[Date "2022.05.25"]
[WhiteClock "0:01:42"]
[BlackClock "0:01:46"]

1. d4 {[%clk 0:03:00]}  d5 {[%clk 0:02:59]} 2. c4 {[%clk 0:03:00]}  e6 {[%clk 0:02:59]} 3. Nc3 {[%clk 0:03:01]}  Bb4 {[%clk 0:02:58]} 4. a3 {[%clk 0:02:59]}  Bxc3+ {[%clk 0:02:57]} 5. bxc3 {[%clk 0:02:59]}  c6 {[%clk 0:02:56]} 6. Bf4 {[%clk 0:02:57]}  Nf6 {[%clk 0:02:55]} 7. e3 {[%clk 0:02:57]}  O-O {[%clk 0:02:55]} 8. Nf3 {[%clk 0:02:57]}  Nbd7 {[%clk 0:02:49]} 9. Qc2 {[%clk 0:02:56]}  dxc4 {[%clk 0:02:46]} 10. Bxc4 {[%clk 0:02:55]}  c5 {[%clk 0:02:47]} 11. Bd6 {[%clk 0:02:50]}  Re8 {[%clk 0:02:46]} 12. dxc5 {[%clk 0:02:44]}  Qa5 {[%clk 0:02:45]} 13. Rb1 {[%clk 0:02:26]}  a6 {[%clk 0:02:38]} 14. c6 {[%clk 0:02:12]}  bxc6 {[%clk 0:02:36]} 15. O-O {[%clk 0:02:11]}  Nd5 {[%clk 0:02:31]} 16. Rfc1 {[%clk 0:02:06]}  N7b6 {[%clk 0:02:23]} 17. Bd3 {[%clk 0:02:00]}  Nf6 {[%clk 0:02:11]} 18. c4 {[%clk 0:01:56]}  Nbd7 {[%clk 0:02:04]} 19. Nd4 {[%clk 0:01:46]}  c5 {[%clk 0:01:46]} 20. Nc6 {[%clk 0:01:42]} 1-0


[Site "https://www.chess.com"]